[Event "*** Titled Tuesday Blitz"]
[Site "Chess.com"]
[Date "2020.05.05"]
[Round "9"]
[White "BocharovD"]
[Black "Shield12"]
[Result "1-0"]
[WhiteElo "2898"]
[BlackElo "2816"]
[TimeControl "180+1"]
[EndTime "11:47:21 PDT"]
[Termination "BocharovD won by resignation"]

1. c4 {[%clk 0:03:00.9]} 1... e5 {[%clk 0:02:59.6]} 2. d3 {[%clk 0:02:59.7]}
2... Nf6 {[%clk 0:02:57]} 3. Nf3 {[%clk 0:03:00.1]} 3... c6 {[%clk 0:02:57.1]}
4. Nc3 {[%clk 0:02:56.9]} 4... Bd6 {[%clk 0:02:56.6]} 5. g3 {[%clk 0:02:55.5]}
5... Bc7 {[%clk 0:02:56.4]} 6. Bg5 {[%clk 0:02:53.1]} 6... h6 {[%clk 0:02:52.9]}
7. Bxf6 {[%clk 0:02:52.6]} 7... Qxf6 {[%clk 0:02:53.8]} 8. Bg2 {[%clk 0:02:53]}
8... O-O {[%clk 0:02:53.7]} 9. O-O {[%clk 0:02:53.1]} 9... d6 {[%clk 0:02:52.2]}
10. b4 {[%clk 0:02:52.8]} 10... Be6 {[%clk 0:02:44]} 11. Nd2 {[%clk 0:02:51.2]}
11... Rd8 {[%clk 0:02:42]} 12. b5 {[%clk 0:02:49]} 12... d5 {[%clk 0:02:36.8]}
13. bxc6 {[%clk 0:02:47.8]} 13... bxc6 {[%clk 0:02:35.9]} 14. Rc1 {[%clk
0:02:47.7]} 14... Qe7 {[%clk 0:02:29.5]} 15. Qb3 {[%clk 0:02:44.1]} 15... d4
{[%clk 0:01:56.9]} 16. Na4 {[%clk 0:02:42.3]} 16... Ba5 {[%clk 0:01:50.9]} 17.
Qc2 {[%clk 0:02:41.9]} 17... Na6 {[%clk 0:01:49.5]} 18. Nb3 {[%clk 0:02:25.9]}
18... Bc7 {[%clk 0:01:44.8]} 19. Qd2 {[%clk 0:02:25.9]} 19... Qd6 {[%clk
0:01:38.5]} 20. Na5 {[%clk 0:02:18.8]} 20... Qb4 {[%clk 0:01:24.7]} 21. Qxb4
{[%clk 0:02:14.5]} 21... Nxb4 {[%clk 0:01:25.6]} 22. Nxc6 {[%clk 0:02:14.4]}
22... Nxc6 {[%clk 0:01:25.6]} 23. Bxc6 {[%clk 0:02:14.8]} 23... Rab8 {[%clk
0:01:26.5]} 24. Rb1 {[%clk 0:02:14.2]} 24... Bd6 {[%clk 0:01:23.3]} 25. Bd5
{[%clk 0:01:58.2]} 25... Bd7 {[%clk 0:01:21.9]} 26. Rxb8 {[%clk 0:01:47.5]}
26... Rxb8 {[%clk 0:01:20.9]} 27. c5 {[%clk 0:01:47.8]} 27... Bxa4 {[%clk
0:01:12.9]} 28. cxd6 {[%clk 0:01:47.4]} 28... Rd8 {[%clk 0:01:03.6]} 29. Rc1
{[%clk 0:01:42]} 29... Be8 {[%clk 0:01:01.5]} 30. Bb3 {[%clk 0:01:35.9]} 30...
a6 {[%clk 0:00:54.2]} 31. Rc5 {[%clk 0:01:32.1]} 31... Rxd6 {[%clk 0:00:49]} 32.
Rxe5 {[%clk 0:01:31.9]} 32... Kf8 {[%clk 0:00:49.9]} 33. f4 {[%clk 0:01:24.8]}
33... f6 {[%clk 0:00:46.7]} 34. Rc5 {[%clk 0:01:24.7]} 34... g5 {[%clk
0:00:43.4]} 35. Kf2 {[%clk 0:01:19.5]} 35... Ke7 {[%clk 0:00:43.5]} 36. Bc4
{[%clk 0:01:18.7]} 36... Rb6 {[%clk 0:00:42.6]} 37. Rd5 {[%clk 0:01:13.8]} 37...
gxf4 {[%clk 0:00:28.7]} 38. gxf4 {[%clk 0:01:12]} 38... Rb2 {[%clk 0:00:26.2]}
39. Rxd4 {[%clk 0:01:11.6]} 39... a5 {[%clk 0:00:26.1]} 40. Re4+ {[%clk
0:01:10.7]} 40... Kf8 {[%clk 0:00:25.2]} 41. Re6 {[%clk 0:01:08.9]} 41... Bh5
{[%clk 0:00:21.6]} 42. Rxf6+ {[%clk 0:01:08.5]} 42... Kg7 {[%clk 0:00:22]} 43.
Re6 {[%clk 0:01:08.5]} 43... Bg4 {[%clk 0:00:22.2]} 44. Re5 {[%clk 0:01:05.2]}
1-0

[Event "*** Titled Tuesday Blitz"]
[Site "Chess.com"]
[Date "2020.05.05"]
[Round "9"]
[White "AminMolaei"]
[Black "Firegrizzly"]
[Result "0-1"]
[WhiteElo "2527"]
[BlackElo "2677"]
[TimeControl "180+1"]
[EndTime "11:47:21 PDT"]
[Termination "Firegrizzly won by resignation"]

1. d4 {[%clk 0:02:58]} 1... Nf6 {[%clk 0:03:00.9]} 2. c4 {[%clk 0:02:58.4]} 2...
g6 {[%clk 0:03:00.9]} 3. Nc3 {[%clk 0:02:57.2]} 3... Bg7 {[%clk 0:03:01.3]} 4.
e4 {[%clk 0:02:56.9]} 4... O-O {[%clk 0:03:01.9]} 5. Be2 {[%clk 0:02:56.4]} 5...
d6 {[%clk 0:03:01.6]} 6. Nf3 {[%clk 0:02:56.8]} 6... Nbd7 {[%clk 0:02:58.9]} 7.
O-O {[%clk 0:02:56.6]} 7... e5 {[%clk 0:02:58.5]} 8. Be3 {[%clk 0:02:56.8]} 8...
Re8 {[%clk 0:02:56.9]} 9. Qc2 {[%clk 0:02:53.6]} 9... b6 {[%clk 0:02:49.4]} 10.
Rfd1 {[%clk 0:02:41.4]} 10... exd4 {[%clk 0:02:47.5]} 11. Nxd4 {[%clk
0:02:39.6]} 11... Bb7 {[%clk 0:02:47.6]} 12. f3 {[%clk 0:02:37.9]} 12... Nh5
{[%clk 0:02:42.5]} 13. Qd2 {[%clk 0:02:22.6]} 13... Nc5 {[%clk 0:02:33.6]} 14.
b4 {[%clk 0:02:18.4]} 14... Ne6 {[%clk 0:02:32.5]} 15. Nd5 {[%clk 0:02:17.7]}
15... Nxd4 {[%clk 0:02:26.5]} 16. Bxd4 {[%clk 0:02:16.9]} 16... Bxd4+ {[%clk
0:02:23.6]} 17. Qxd4 {[%clk 0:02:17.8]} 17... Bxd5 {[%clk 0:02:22.8]} 18. cxd5
{[%clk 0:02:13.8]} 18... Qg5 {[%clk 0:02:22.4]} 19. Bf1 {[%clk 0:02:06.2]} 19...
f5 {[%clk 0:02:18.6]} 20. exf5 {[%clk 0:02:00.4]} 20... gxf5 {[%clk 0:02:12.1]}
21. Rac1 {[%clk 0:01:57.8]} 21... Re7 {[%clk 0:02:10.6]} 22. Rc4 {[%clk
0:01:55.7]} 22... Rf8 {[%clk 0:02:05.3]} 23. Rdc1 {[%clk 0:01:52.7]} 23... Rff7
{[%clk 0:02:05.7]} 24. a4 {[%clk 0:01:26.9]} 24... Rg7 {[%clk 0:01:53.5]} 25. a5
{[%clk 0:01:23.6]} 25... Re2 {[%clk 0:01:33.3]} 26. Qxg7+ {[%clk 0:01:08.7]}
26... Kxg7 {[%clk 0:01:30.4]} 27. Bxe2 {[%clk 0:01:06.7]} 27... Qe3+ {[%clk
0:01:28.4]} 28. Kf1 {[%clk 0:01:05.3]} 28... Nf4 {[%clk 0:01:26.9]} 29. Rxc7+
{[%clk 0:00:49.5]} 29... Kg6 {[%clk 0:01:25.8]} 30. Re1 {[%clk 0:00:37.3]} 30...
h5 {[%clk 0:01:12.6]} 31. Rc6 {[%clk 0:00:34.5]} 31... bxa5 {[%clk 0:01:11.9]}
32. Rxd6+ {[%clk 0:00:34]} 32... Kg5 {[%clk 0:01:08.7]} 33. bxa5 {[%clk
0:00:34.4]} 33... h4 {[%clk 0:01:07.3]} 34. Rd8 {[%clk 0:00:20.8]} 34... h3
{[%clk 0:01:05.8]} 35. g3 {[%clk 0:00:17.5]} 35... Nd3 {[%clk 0:00:53.3]} 36.
Bxd3 {[%clk 0:00:14]} 36... Qxf3+ {[%clk 0:00:51.7]} 0-1

[Event "*** Titled Tuesday Blitz"]
[Site "Chess.com"]
[Date "2020.05.05"]
[Round "9"]
[White "GelmanAlexander"]
[Black "grunbergmihai"]
[Result "1-0"]
[WhiteElo "2523"]
[BlackElo "2386"]
[TimeControl "180+1"]
[EndTime "11:47:23 PDT"]
[Termination "GelmanAlexander won by resignation"]

1. c4 {[%clk 0:03:00.9]} 1... e5 {[%clk 0:02:54.4]} 2. e3 {[%clk 0:03:00.7]}
2... Nf6 {[%clk 0:02:52.7]} 3. a3 {[%clk 0:03:00.7]} 3... c5 {[%clk 0:02:50.6]}
4. d3 {[%clk 0:03:00.1]} 4... Nc6 {[%clk 0:02:50.3]} 5. Nf3 {[%clk 0:03:00.3]}
5... d5 {[%clk 0:02:48.4]} 6. cxd5 {[%clk 0:03:00.4]} 6... Nxd5 {[%clk
0:02:48.3]} 7. b3 {[%clk 0:03:00.7]} 7... f6 {[%clk 0:02:47.4]} 8. Bb2 {[%clk
0:03:00.6]} 8... Be6 {[%clk 0:02:47.4]} 9. Nbd2 {[%clk 0:03:00.8]} 9... Qd7
{[%clk 0:02:46.3]} 10. Rc1 {[%clk 0:02:58]} 10... Be7 {[%clk 0:02:46]} 11. h3
{[%clk 0:02:55.7]} 11... O-O {[%clk 0:02:45.6]} 12. g4 {[%clk 0:02:55.8]} 12...
a5 {[%clk 0:02:44.5]} 13. Rg1 {[%clk 0:02:54.5]} 13... a4 {[%clk 0:02:43.1]} 14.
bxa4 {[%clk 0:02:54.8]} 14... Nb6 {[%clk 0:02:42.8]} 15. g5 {[%clk 0:02:55.1]}
15... Nxa4 {[%clk 0:02:37.7]} 16. Ba1 {[%clk 0:02:55.1]} 16... fxg5 {[%clk
0:02:28.7]} 17. Nxg5 {[%clk 0:02:54.7]} 17... Bxg5 {[%clk 0:02:18.7]} 18. Rxg5
{[%clk 0:02:54.5]} 18... Bxh3 {[%clk 0:02:12.4]} 19. Rc4 {[%clk 0:01:58.3]}
19... Qf7 {[%clk 0:01:58.2]} 20. Rf4 {[%clk 0:00:57]} 20... exf4 {[%clk
0:01:42]} 21. Rxg7+ {[%clk 0:00:49.2]} 21... Qxg7 {[%clk 0:01:41.7]} 22. Bxg7
{[%clk 0:00:50.1]} 22... fxe3 {[%clk 0:01:30.1]} 23. Bxf8 {[%clk 0:00:37.9]}
23... exd2+ {[%clk 0:01:29.7]} 24. Qxd2 {[%clk 0:00:36.8]} 24... Re8+ {[%clk
0:01:15.8]} 25. Kd1 {[%clk 0:00:23.7]} 25... Rxf8 {[%clk 0:01:08.9]} 26. Qg5+
{[%clk 0:00:20.1]} 26... Kh8 {[%clk 0:01:08.4]} 27. Bxh3 {[%clk 0:00:20]} 27...
Nc3+ {[%clk 0:01:03.8]} 28. Kc2 {[%clk 0:00:17.8]} 28... Ne2 {[%clk 0:01:01.6]}
29. Kb2 {[%clk 0:00:13.6]} 29... Ned4 {[%clk 0:01:00.8]} 30. f4 {[%clk
0:00:11.3]} 30... b6 {[%clk 0:00:51.1]} 31. Bd7 {[%clk 0:00:11.1]} 31... Nf3
{[%clk 0:00:45.3]} 32. Qh6 {[%clk 0:00:09.6]} 1-0

[Event "*** Titled Tuesday Blitz"]
[Site "Chess.com"]
[Date "2020.05.05"]
[Round "9"]
[White "JulAnt"]
[Black "quesfr"]
[Result "1-0"]
[WhiteElo "2456"]
[BlackElo "2270"]
[TimeControl "180+1"]
[EndTime "11:47:25 PDT"]
[Termination "JulAnt won by resignation"]

1. e4 {[%clk 0:03:00.9]} 1... e6 {[%clk 0:03:00.2]} 2. d4 {[%clk 0:03:00.6]}
2... d5 {[%clk 0:03:00.9]} 3. Nd2 {[%clk 0:03:01]} 3... c5 {[%clk 0:03:00.9]} 4.
exd5 {[%clk 0:03:01]} 4... Qxd5 {[%clk 0:03:01.8]} 5. Ngf3 {[%clk 0:03:01.3]}
5... cxd4 {[%clk 0:03:02.1]} 6. Bc4 {[%clk 0:03:01.6]} 6... Qd7 {[%clk
0:02:59.9]} 7. O-O {[%clk 0:03:01.7]} 7... Nc6 {[%clk 0:02:59.1]} 8. Nb3 {[%clk
0:03:02]} 8... Nf6 {[%clk 0:02:59.1]} 9. Qe2 {[%clk 0:03:01.8]} 9... Bd6 {[%clk
0:02:49.8]} 10. Rd1 {[%clk 0:03:01.2]} 10... O-O {[%clk 0:02:46.2]} 11. Nbxd4
{[%clk 0:03:00.3]} 11... Nxd4 {[%clk 0:02:44.9]} 12. Rxd4 {[%clk 0:03:00.4]}
12... Qc7 {[%clk 0:02:42.5]} 13. Bg5 {[%clk 0:02:56.9]} 13... Be7 {[%clk
0:02:28.4]} 14. Rad1 {[%clk 0:02:51.5]} 14... Rd8 {[%clk 0:02:26.1]} 15. c3
{[%clk 0:02:28.7]} 15... Bd7 {[%clk 0:02:14.5]} 16. Ne5 {[%clk 0:02:21.9]} 16...
Bc6 {[%clk 0:02:08.3]} 17. Nxf7 {[%clk 0:02:04.1]} 17... Rxd4 {[%clk 0:02:00.5]}
18. Rxd4 {[%clk 0:02:04.9]} 18... Kxf7 {[%clk 0:01:46.7]} 19. Qxe6+ {[%clk
0:02:04]} 19... Kg6 {[%clk 0:01:46.4]} 20. Bd3+ {[%clk 0:01:22.3]} 20... Be4
{[%clk 0:01:03.3]} 21. Bxe4+ {[%clk 0:01:20.1]} 21... Kxg5 {[%clk 0:01:03.6]}
22. Bd3 {[%clk 0:00:49.5]} 22... Qc5 {[%clk 0:00:53.5]} 23. Qe3+ {[%clk
0:00:33.3]} 23... Kh5 {[%clk 0:00:50.3]} 24. g4+ {[%clk 0:00:29.7]} 24... Nxg4
{[%clk 0:00:28.8]} 25. Qh3+ {[%clk 0:00:29.5]} 25... Kg5 {[%clk 0:00:27.3]} 26.
Qxg4+ {[%clk 0:00:26.3]} 26... Kf6 {[%clk 0:00:27.6]} 27. Rf4+ {[%clk
0:00:26.4]} 27... Ke5 {[%clk 0:00:25.6]} 28. Rf5+ {[%clk 0:00:26.7]} 28... Kd6
{[%clk 0:00:26.2]} 29. Rxc5 {[%clk 0:00:27]} 29... Kxc5 {[%clk 0:00:27.1]} 30.
Qxg7 {[%clk 0:00:24.7]} 30... Bd6 {[%clk 0:00:25.7]} 31. Qd4+ {[%clk 0:00:24]}
31... Kc6 {[%clk 0:00:25.8]} 32. Be4+ {[%clk 0:00:24.5]} 32... Kc7 {[%clk
0:00:26]} 33. Qg7+ {[%clk 0:00:24.6]} 1-0

[Event "*** Titled Tuesday Blitz"]
[Site "Chess.com"]
[Date "2020.05.05"]
[Round "9"]
[White "Boudicca64"]
[Black "CaptainTheTT"]
[Result "0-1"]
[WhiteElo "2001"]
[BlackElo "2247"]
[TimeControl "180+1"]
[EndTime "11:47:25 PDT"]
[Termination "CaptainTheTT won on time"]

1. d4 {[%clk 0:03:00.9]} 1... d5 {[%clk 0:02:59]} 2. c4 {[%clk 0:03:00.8]} 2...
c6 {[%clk 0:02:54.7]} 3. Nf3 {[%clk 0:03:00.6]} 3... Nf6 {[%clk 0:02:54.6]} 4.
Nc3 {[%clk 0:03:00.1]} 4... e6 {[%clk 0:02:54]} 5. Bg5 {[%clk 0:03:00.1]} 5...
dxc4 {[%clk 0:02:53.3]} 6. e4 {[%clk 0:02:57]} 6... b5 {[%clk 0:02:53.9]} 7. a4
{[%clk 0:02:47.7]} 7... Bb4 {[%clk 0:02:44.6]} 8. e5 {[%clk 0:02:45.3]} 8... h6
{[%clk 0:02:42.1]} 9. exf6 {[%clk 0:02:42.8]} 9... hxg5 {[%clk 0:02:41.6]} 10.
fxg7 {[%clk 0:02:43.6]} 10... Rg8 {[%clk 0:02:39.2]} 11. g3 {[%clk 0:02:44.2]}
11... g4 {[%clk 0:02:36.8]} 12. Ne5 {[%clk 0:02:39.8]} 12... Qd5 {[%clk
0:02:31.8]} 13. Rg1 {[%clk 0:02:11.6]} 13... Qe4+ {[%clk 0:02:29.8]} 14. Qe2
{[%clk 0:02:09.4]} 14... Qxd4 {[%clk 0:02:27.1]} 15. Rc1 {[%clk 0:01:54.3]}
15... Rxg7 {[%clk 0:02:20.5]} 16. axb5 {[%clk 0:01:45.2]} 16... Rg5 {[%clk
0:02:04.8]} 17. f4 {[%clk 0:01:13.4]} 17... Rxe5 {[%clk 0:01:56.9]} 18. fxe5
{[%clk 0:00:24.9]} 18... Qxg1 {[%clk 0:01:55]} 19. Qxc4 {[%clk 0:00:25.6]} 19...
Bxc3+ {[%clk 0:01:32.4]} 20. Rxc3 {[%clk 0:00:18.8]} 20... Nd7 {[%clk
0:01:31.8]} 21. Qxc6 {[%clk 0:00:17.3]} 21... Rb8 {[%clk 0:01:25.5]} 22. Qd6
{[%clk 0:00:12.3]} 22... Qxh2 {[%clk 0:01:15.3]} 23. Rc7 {[%clk 0:00:08]} 23...
Qxg3+ {[%clk 0:01:12.1]} 24. Kd2 {[%clk 0:00:06.5]} 24... Qxe5 {[%clk
0:01:09.3]} 25. Rxd7 {[%clk 0:00:03.1]} 25... Qg5+ {[%clk 0:01:04.8]} 26. Kd1
{[%clk 0:00:02.6]} 26... Bxd7 {[%clk 0:00:58.9]} 27. Qxb8+ {[%clk 0:00:02.5]}
27... Qd8 {[%clk 0:00:57.5]} 28. Qxa7 {[%clk 0:00:01.9]} 28... Bxb5+ {[%clk
0:00:55.9]} 29. Ke1 {[%clk 0:00:01.4]} 29... Qh4+ {[%clk 0:00:49]} 30. Kd2
{[%clk 0:00:01.5]} 30... Bxf1 {[%clk 0:00:39.9]} 31. Qb8+ {[%clk 0:00:01.2]}
31... Qd8+ {[%clk 0:00:36.2]} 0-1

[Event "*** Titled Tuesday Blitz"]
[Site "Chess.com"]
[Date "2020.05.05"]
[Round "9"]
[White "Grandmaster2B"]
[Black "1977Ivan"]
[Result "0-1"]
[WhiteElo "2489"]
[BlackElo "2644"]
[TimeControl "180+1"]
[EndTime "11:47:26 PDT"]
[Termination "1977Ivan won on time"]

1. e4 {[%clk 0:03:00.9]} 1... c5 {[%clk 0:02:59.4]} 2. Nf3 {[%clk 0:03:00.7]}
2... e6 {[%clk 0:02:59.9]} 3. d4 {[%clk 0:03:01.3]} 3... cxd4 {[%clk 0:03:00.7]}
4. Nxd4 {[%clk 0:03:02.2]} 4... Nc6 {[%clk 0:03:01]} 5. Nb5 {[%clk 0:03:02.4]}
5... Nf6 {[%clk 0:02:58.5]} 6. N1c3 {[%clk 0:02:44.6]} 6... Bc5 {[%clk
0:02:57.7]} 7. Nd6+ {[%clk 0:02:36.4]} 7... Ke7 {[%clk 0:02:57.3]} 8. Nxc8+
{[%clk 0:02:21.4]} 8... Rxc8 {[%clk 0:02:58.2]} 9. Bf4 {[%clk 0:02:21.9]} 9...
Qb6 {[%clk 0:02:47.1]} 10. Qd2 {[%clk 0:02:15.4]} 10... Ng4 {[%clk 0:02:24]} 11.
Bg3 {[%clk 0:02:09.2]} 11... Bxf2+ {[%clk 0:01:51.3]} 12. Bxf2 {[%clk
0:02:06.7]} 12... Nxf2 {[%clk 0:01:51.2]} 13. Na4 {[%clk 0:01:49.6]} 13... Qb4
{[%clk 0:01:20.1]} 14. Qxb4+ {[%clk 0:01:42.4]} 14... Nxb4 {[%clk 0:01:19.7]}
15. Kxf2 {[%clk 0:01:43]} 15... Rxc2+ {[%clk 0:01:19.7]} 16. Ke3 {[%clk
0:01:42.9]} 16... Rhc8 {[%clk 0:01:19]} 17. Bd3 {[%clk 0:01:34.7]} 17... Rxg2
{[%clk 0:01:15]} 18. Rag1 {[%clk 0:01:35.2]} 18... Rxg1 {[%clk 0:01:00.8]} 19.
Rxg1 {[%clk 0:01:36.1]} 19... g6 {[%clk 0:01:01.2]} 20. Nc3 {[%clk 0:01:29.7]}
20... a6 {[%clk 0:00:59.6]} 21. a3 {[%clk 0:01:27.3]} 21... Nc6 {[%clk
0:00:59.3]} 22. Rc1 {[%clk 0:01:25]} 22... g5 {[%clk 0:00:50.7]} 23. Ne2 {[%clk
0:01:22]} 23... Rg8 {[%clk 0:00:48.3]} 24. b4 {[%clk 0:01:06.8]} 24... Ne5
{[%clk 0:00:46.6]} 25. Rc7 {[%clk 0:00:55.1]} 25... Rb8 {[%clk 0:00:45.5]} 26.
Bc2 {[%clk 0:00:51.7]} 26... Kd6 {[%clk 0:00:44]} 27. Rc3 {[%clk 0:00:37.5]}
27... h5 {[%clk 0:00:43.8]} 28. h3 {[%clk 0:00:27.1]} 28... h4 {[%clk
0:00:42.8]} 29. Nc1 {[%clk 0:00:25.8]} 29... g4 {[%clk 0:00:39.5]} 30. hxg4
{[%clk 0:00:25.7]} 30... h3 {[%clk 0:00:36.4]} 31. Kf4 {[%clk 0:00:25]} 31...
Rh8 {[%clk 0:00:35.8]} 0-1

[Event "*** Titled Tuesday Blitz"]
[Site "Chess.com"]
[Date "2020.05.05"]
[Round "9"]
[White "Bodnar_Mykola"]
[Black "Sven_Tica"]
[Result "0-1"]
[WhiteElo "2442"]
[BlackElo "2689"]
[TimeControl "180+1"]
[EndTime "11:47:27 PDT"]
[Termination "Sven_Tica won on time"]

1. d4 {[%clk 0:03:00.9]} 1... d5 {[%clk 0:03:00.2]} 2. c4 {[%clk 0:02:59]} 2...
e6 {[%clk 0:03:00.7]} 3. Nc3 {[%clk 0:02:58.3]} 3... Nf6 {[%clk 0:03:00.9]} 4.
Bg5 {[%clk 0:02:57.7]} 4... Nbd7 {[%clk 0:02:53.8]} 5. e3 {[%clk 0:02:57.4]}
5... h6 {[%clk 0:02:50.7]} 6. Bh4 {[%clk 0:02:56.7]} 6... Be7 {[%clk 0:02:51.3]}
7. Nf3 {[%clk 0:02:55.6]} 7... O-O {[%clk 0:02:49.1]} 8. cxd5 {[%clk 0:02:54.4]}
8... Nxd5 {[%clk 0:02:46.3]} 9. Bxe7 {[%clk 0:02:53.2]} 9... Qxe7 {[%clk
0:02:47.2]} 10. Nxd5 {[%clk 0:02:52.3]} 10... exd5 {[%clk 0:02:46.1]} 11. Bd3
{[%clk 0:02:52.8]} 11... c6 {[%clk 0:02:39.7]} 12. O-O {[%clk 0:02:51.9]} 12...
Nf6 {[%clk 0:02:31.7]} 13. Ne5 {[%clk 0:02:50.9]} 13... Be6 {[%clk 0:02:32]} 14.
f4 {[%clk 0:02:47.8]} 14... Rfe8 {[%clk 0:02:24.9]} 15. Qf3 {[%clk 0:02:46.5]}
15... b6 {[%clk 0:02:20]} 16. Kh1 {[%clk 0:02:41.7]} 16... c5 {[%clk 0:02:19.3]}
17. g4 {[%clk 0:02:40.3]} 17... cxd4 {[%clk 0:02:15.7]} 18. exd4 {[%clk
0:02:39.2]} 18... Qb4 {[%clk 0:02:16.2]} 19. g5 {[%clk 0:02:19.3]} 19... Ne4
{[%clk 0:02:15.5]} 20. gxh6 {[%clk 0:02:12.9]} 20... Qxd4 {[%clk 0:02:15]} 21.
Bxe4 {[%clk 0:02:02.2]} 21... Qxe4 {[%clk 0:02:06.4]} 22. hxg7 {[%clk 0:01:59]}
22... Kxg7 {[%clk 0:02:03.3]} 23. Rg1+ {[%clk 0:01:56.3]} 23... Kf6 {[%clk
0:02:02.8]} 24. Rac1 {[%clk 0:01:39.6]} 24... Rac8 {[%clk 0:02:00]} 25. Rge1
{[%clk 0:01:30.8]} 25... Rxc1 {[%clk 0:01:52.2]} 26. Rxc1 {[%clk 0:01:30.8]}
26... Bf5 {[%clk 0:01:46]} 27. Kg1 {[%clk 0:01:13.5]} 27... Qxf3 {[%clk
0:01:43.2]} 28. Nxf3 {[%clk 0:01:12.8]} 28... Re2 {[%clk 0:01:43.8]} 29. Nd4
{[%clk 0:01:10.8]} 29... Rxb2 {[%clk 0:01:43.9]} 30. Rc6+ {[%clk 0:01:05.8]}
30... Be6 {[%clk 0:01:39.6]} 31. f5 {[%clk 0:01:01.9]} 31... Rd2 {[%clk
0:01:39.5]} 32. fxe6 {[%clk 0:00:46.8]} 32... Rxd4 {[%clk 0:01:38.2]} 33. exf7+
{[%clk 0:00:47.2]} 33... Kg7 {[%clk 0:01:36]} 34. Rc2 {[%clk 0:00:39.9]} 34...
Kxf7 {[%clk 0:01:35.4]} 35. Rc7+ {[%clk 0:00:39.5]} 35... Ke6 {[%clk 0:01:31.3]}
36. Rxa7 {[%clk 0:00:40.4]} 36... Rf4 {[%clk 0:01:31.1]} 37. Rb7 {[%clk
0:00:38.3]} 37... Rb4 {[%clk 0:01:31.3]} 38. Kg2 {[%clk 0:00:33]} 38... Ke5
{[%clk 0:01:31.6]} 39. Kg3 {[%clk 0:00:31]} 39... d4 {[%clk 0:01:25.8]} 40. h4
{[%clk 0:00:30.3]} 40... d3 {[%clk 0:01:26.3]} 41. Kf3 {[%clk 0:00:30.2]} 41...
Rd4 {[%clk 0:01:23.9]} 42. Re7+ {[%clk 0:00:23.9]} 42... Kd5 {[%clk 0:01:24.1]}
43. Rd7+ {[%clk 0:00:19.9]} 43... Kc4 {[%clk 0:01:19.9]} 44. Rc7+ {[%clk
0:00:17.8]} 44... Kb4 {[%clk 0:01:16.4]} 45. Rc1 {[%clk 0:00:15.9]} 45... d2
{[%clk 0:01:16.8]} 46. Rd1 {[%clk 0:00:12.4]} 46... Kc3 {[%clk 0:01:17.3]} 47.
Kg3 {[%clk 0:00:08.7]} 47... Kc2 {[%clk 0:01:16.2]} 0-1

[Event "*** Titled Tuesday Blitz"]
[Site "Chess.com"]
[Date "2020.05.05"]
[Round "9"]
[White "mirochka"]
[Black "monalize"]
[Result "0-1"]
[WhiteElo "2133"]
[BlackElo "2351"]
[TimeControl "180+1"]
[EndTime "11:47:27 PDT"]
[Termination "monalize won on time"]

1. e4 {[%clk 0:03:00.9]} 1... c5 {[%clk 0:02:58.4]} 2. b4 {[%clk 0:03:00.2]}
2... cxb4 {[%clk 0:02:57.5]} 3. a3 {[%clk 0:03:00.7]} 3... bxa3 {[%clk
0:02:57.2]} 4. d4 {[%clk 0:03:01.2]} 4... e6 {[%clk 0:02:53.9]} 5. Bd3 {[%clk
0:02:59.8]} 5... f6 {[%clk 0:02:53.2]} 6. Ne2 {[%clk 0:02:58]} 6... Ne7 {[%clk
0:02:50.6]} 7. O-O {[%clk 0:02:57.2]} 7... Nbc6 {[%clk 0:02:50.1]} 8. Bxa3
{[%clk 0:02:45.5]} 8... Ng6 {[%clk 0:02:48.2]} 9. c3 {[%clk 0:02:42.8]} 9...
Bxa3 {[%clk 0:02:46.9]} 10. Nxa3 {[%clk 0:02:43.4]} 10... O-O {[%clk 0:02:45.2]}
11. f4 {[%clk 0:02:38.2]} 11... d5 {[%clk 0:02:39.1]} 12. e5 {[%clk 0:02:27.2]}
12... f5 {[%clk 0:02:35.4]} 13. Nb5 {[%clk 0:02:24.8]} 13... b6 {[%clk
0:02:31.4]} 14. g4 {[%clk 0:02:14.4]} 14... Nge7 {[%clk 0:02:30]} 15. Ng3 {[%clk
0:02:11.3]} 15... fxg4 {[%clk 0:02:27.3]} 16. Qxg4 {[%clk 0:02:09.6]} 16... g6
{[%clk 0:02:26.3]} 17. Nd6 {[%clk 0:02:08]} 17... Nf5 {[%clk 0:02:17.7]} 18.
Ngxf5 {[%clk 0:01:11.5]} 18... exf5 {[%clk 0:02:16.8]} 19. Qg2 {[%clk
0:01:09.9]} 19... Ne7 {[%clk 0:02:15.4]} 20. c4 {[%clk 0:01:03.6]} 20... Be6
{[%clk 0:02:14.3]} 21. Rfc1 {[%clk 0:00:51.5]} 21... Kh8 {[%clk 0:02:07.2]} 22.
Be2 {[%clk 0:00:42.3]} 22... a5 {[%clk 0:02:00.8]} 23. Bf3 {[%clk 0:00:41.5]}
23... dxc4 {[%clk 0:01:51.2]} 24. d5 {[%clk 0:00:41.4]} 24... Bg8 {[%clk
0:01:47.4]} 25. Rxc4 {[%clk 0:00:40.1]} 25... b5 {[%clk 0:01:41.9]} 26. Rc5
{[%clk 0:00:35.1]} 26... Qb6 {[%clk 0:01:40.4]} 27. Rc1 {[%clk 0:00:24.5]} 27...
b4 {[%clk 0:01:38.1]} 28. Kh1 {[%clk 0:00:24.1]} 28... b3 {[%clk 0:01:37.3]} 29.
Rb5 {[%clk 0:00:24]} 29... Qe3 {[%clk 0:01:35]} 30. Rb1 {[%clk 0:00:14.8]} 30...
a4 {[%clk 0:01:34.5]} 31. e6 {[%clk 0:00:13.3]} 31... h6 {[%clk 0:01:28]} 32.
Qb2+ {[%clk 0:00:11.7]} 32... Kh7 {[%clk 0:01:27]} 33. Rb7 {[%clk 0:00:10.4]}
33... Qxf3+ {[%clk 0:01:26.3]} 34. Kg1 {[%clk 0:00:09.2]} 34... Rfe8 {[%clk
0:01:23.7]} 35. Qf6 {[%clk 0:00:06.6]} 35... Qe3+ {[%clk 0:01:20.5]} 36. Kh1
{[%clk 0:00:03.5]} 36... Qf3+ {[%clk 0:01:20.2]} 37. Kg1 {[%clk 0:00:03.9]}
37... Qe3+ {[%clk 0:01:10.8]} 38. Kh1 {[%clk 0:00:03.7]} 38... Ra7 {[%clk
0:01:10.6]} 39. Rxa7 {[%clk 0:00:02.3]} 39... Qxa7 {[%clk 0:01:09.8]} 40. Nxe8
{[%clk 0:00:02]} 40... Nxd5 {[%clk 0:01:09]} 0-1